[Event "Live Chess"]
[Site "Chess.com"]
[Date "2023.05.20"]
[Round "-"]
[White "Duke_of_Bebington"]
[Black "BillythekidFellowes"]
[Result "1-0"]
[WhiteElo "1588"]
[BlackElo "2021"]
[TimeControl "300"]
[EndTime "12:29:42 PDT"]
[Termination "Duke_of_Bebington won on time"]

1. e4 {[%clk 0:04:55.9]} 1... Nc6 {[%clk 0:04:58.5]} 2. Nf3 {[%clk 0:04:52]}
2... d6 {[%clk 0:04:57.2]} 3. d4 {[%clk 0:04:48.7]} 3... Nf6 {[%clk 0:04:56.1]}
4. Bd3 {[%clk 0:04:41.9]} 4... g6 {[%clk 0:04:54.5]} 5. Be3 {[%clk 0:04:38.2]}
5... Bg7 {[%clk 0:04:53.5]} 6. c3 {[%clk 0:04:36.5]} 6... O-O {[%clk 0:04:51]}
7. Nbd2 {[%clk 0:04:34.9]} 7... e5 {[%clk 0:04:49.2]} 8. O-O {[%clk 0:04:30.2]}
8... Bg4 {[%clk 0:04:46.1]} 9. Qb3 {[%clk 0:04:21.6]} 9... exd4 {[%clk
0:04:44.2]} 10. cxd4 {[%clk 0:04:19.3]} 10... Rb8 {[%clk 0:04:42.1]} 11. h3
{[%clk 0:04:11.3]} 11... Bd7 {[%clk 0:04:39.3]} 12. Rfe1 {[%clk 0:04:00.6]}
12... Kh8 {[%clk 0:04:36]} 13. Nf1 {[%clk 0:03:58.9]} 13... Ne7 {[%clk
0:04:12.3]} 14. Ng3 {[%clk 0:03:38.3]} 14... Ne8 {[%clk 0:03:59.4]} 15. e5
{[%clk 0:03:22.4]} 15... dxe5 {[%clk 0:03:51]} 16. Nxe5 {[%clk 0:03:21]} 16...
Bxe5 {[%clk 0:03:49.3]} 17. dxe5 {[%clk 0:03:19]} 17... Ng7 {[%clk 0:03:48.7]}
18. Bxa7 {[%clk 0:03:11.5]} 18... Ra8 {[%clk 0:03:24.8]} 19. Bc5 {[%clk
0:03:09.8]} 19... Be6 {[%clk 0:03:23.3]} 20. Bc4 {[%clk 0:03:00.2]} 20... Re8
{[%clk 0:02:59.3]} 21. Rad1 {[%clk 0:02:53]} 21... Qc8 {[%clk 0:02:56.8]} 22.
Ne4 {[%clk 0:02:38.2]} 22... Nc6 {[%clk 0:02:47.4]} 23. Nf6 {[%clk 0:02:30.5]}
23... Na5 {[%clk 0:02:46.1]} 24. Bxe6 {[%clk 0:02:21.9]} 24... Rxe6 {[%clk
0:02:37.5]} 25. Qe3 {[%clk 0:02:06.5]} 25... b6 {[%clk 0:02:33.7]} 26. Qh6
{[%clk 0:01:59.8]} 26... Rxf6 {[%clk 0:02:26.6]} 27. exf6 {[%clk 0:01:58.1]}
27... Nf5 {[%clk 0:02:25.9]} 28. Qc1 {[%clk 0:01:39.6]} 28... bxc5 {[%clk
0:02:20]} 29. Qxc5 {[%clk 0:01:37.9]} 29... Nb7 {[%clk 0:01:54.7]} 30. Qd5
{[%clk 0:01:35.7]} 30... Nbd6 {[%clk 0:01:51.7]} 31. Qd2 {[%clk 0:00:57.5]}
31... Rxa2 {[%clk 0:01:47.4]} 32. g4 {[%clk 0:00:53.9]} 32... Nc4 {[%clk
0:01:35.3]} 33. Qg5 {[%clk 0:00:43.3]} 33... h6 {[%clk 0:01:22.7]} 34. Qc1
{[%clk 0:00:38.2]} 34... Nh4 {[%clk 0:01:04.3]} 35. Qxh6+ {[%clk 0:00:35.8]} 1-0

[Event "Live Chess"]
[Site "Chess.com"]
[Date "2023.05.20"]
[Round "-"]
[White "elizaveta_frundina"]
[Black "MaximKris"]
[Result "1/2-1/2"]
[WhiteElo "1576"]
[BlackElo "1856"]
[TimeControl "300"]
[EndTime "12:29:47 PDT"]
[Termination "Game drawn - insufficient material"]

1. e4 {[%clk 0:04:55]} 1... e5 {[%clk 0:04:57.9]} 2. Nf3 {[%clk 0:04:51.4]} 2...
Nc6 {[%clk 0:04:55.9]} 3. d4 {[%clk 0:04:50]} 3... exd4 {[%clk 0:04:54.9]} 4.
Nxd4 {[%clk 0:04:49]} 4... Nxd4 {[%clk 0:04:54.5]} 5. Qxd4 {[%clk 0:04:47.9]}
5... Qf6 {[%clk 0:04:54.2]} 6. e5 {[%clk 0:04:46.4]} 6... Qb6 {[%clk 0:04:53.1]}
7. Be3 {[%clk 0:04:42.5]} 7... Qxd4 {[%clk 0:04:51.5]} 8. Bxd4 {[%clk
0:04:41.6]} 8... Ne7 {[%clk 0:04:51.2]} 9. Nc3 {[%clk 0:04:39.8]} 9... Nc6
{[%clk 0:04:50.3]} 10. Rd1 {[%clk 0:04:29.4]} 10... Nxd4 {[%clk 0:04:45.7]} 11.
Rxd4 {[%clk 0:04:28.2]} 11... Bc5 {[%clk 0:04:42]} 12. Rc4 {[%clk 0:04:22.2]}
12... Bb6 {[%clk 0:04:36.9]} 13. Nd5 {[%clk 0:04:20.6]} 13... Kd8 {[%clk
0:04:35.2]} 14. Nxb6 {[%clk 0:04:13.3]} 14... axb6 {[%clk 0:04:33.6]} 15. a3
{[%clk 0:04:12.2]} 15... Re8 {[%clk 0:04:30.8]} 16. f4 {[%clk 0:04:05.5]} 16...
d6 {[%clk 0:04:28.8]} 17. Rd4 {[%clk 0:03:49.3]} 17... f6 {[%clk 0:04:26.3]} 18.
Be2 {[%clk 0:03:24.2]} 18... fxe5 {[%clk 0:04:24.4]} 19. fxe5 {[%clk 0:03:22.1]}
19... Rxe5 {[%clk 0:04:21.4]} 20. Kd2 {[%clk 0:03:07.3]} 20... Raa5 {[%clk
0:04:17.6]} 21. Rf1 {[%clk 0:02:56.7]} 21... Rad5 {[%clk 0:04:13.7]} 22. Rxd5
{[%clk 0:02:41.9]} 22... Rxd5+ {[%clk 0:04:12.2]} 23. Kc1 {[%clk 0:02:29.5]}
23... Rf5 {[%clk 0:04:06.3]} 24. Rxf5 {[%clk 0:02:22.2]} 24... Bxf5 {[%clk
0:04:04.8]} 25. Kd2 {[%clk 0:02:19.9]} 25... Be4 {[%clk 0:03:57]} 26. g3 {[%clk
0:02:16]} 26... Ke7 {[%clk 0:03:50.8]} 27. c3 {[%clk 0:02:07.3]} 27... Ke6
{[%clk 0:03:47.6]} 28. Ke3 {[%clk 0:02:05.6]} 28... d5 {[%clk 0:03:43.6]} 29. c4
{[%clk 0:01:59.7]} 29... c6 {[%clk 0:03:39.4]} 30. cxd5+ {[%clk 0:01:54.4]}
30... cxd5 {[%clk 0:03:35]} 31. Kd4 {[%clk 0:01:49.2]} 31... g5 {[%clk
0:03:29.6]} 32. Bg4+ {[%clk 0:01:43.7]} 32... Kd6 {[%clk 0:03:26.9]} 33. h4
{[%clk 0:01:38.5]} 33... h6 {[%clk 0:03:24.9]} 34. hxg5 {[%clk 0:01:33.5]} 34...
hxg5 {[%clk 0:03:24.8]} 35. b4 {[%clk 0:01:28.5]} 35... Bg6 {[%clk 0:03:12.5]}
36. Bf3 {[%clk 0:01:24.7]} 36... Bf5 {[%clk 0:03:07.1]} 37. Bxd5 {[%clk
0:01:21.2]} 37... Bc8 {[%clk 0:03:06]} 38. a4 {[%clk 0:01:15.8]} 38... Bd7
{[%clk 0:03:03.1]} 39. a5 {[%clk 0:01:13.4]} 39... bxa5 {[%clk 0:03:00.3]} 40.
bxa5 {[%clk 0:01:12.6]} 40... Bc6 {[%clk 0:02:58.6]} 41. Bxc6 {[%clk 0:01:07.7]}
41... Kxc6 {[%clk 0:02:57.8]} 42. Kc4 {[%clk 0:01:01.8]} 42... g4 {[%clk
0:02:49.8]} 43. Kb4 {[%clk 0:00:55.9]} 43... b5 {[%clk 0:02:17.5]} 44. axb6
{[%clk 0:00:53.9]} 44... Kxb6 {[%clk 0:02:16.6]} 45. Kc4 {[%clk 0:00:53.2]}
45... Kc6 {[%clk 0:02:16.3]} 46. Kd4 {[%clk 0:00:52.6]} 46... Kd6 {[%clk
0:02:16]} 47. Ke4 {[%clk 0:00:52]} 47... Ke6 {[%clk 0:02:15.7]} 48. Kf4 {[%clk
0:00:51.6]} 48... Kf6 {[%clk 0:02:15.4]} 49. Kxg4 {[%clk 0:00:51.1]} 49... Kg6
{[%clk 0:02:15.2]} 50. Kf4 {[%clk 0:00:49.5]} 50... Kf6 {[%clk 0:02:14.4]} 51.
g4 {[%clk 0:00:48.5]} 51... Kg6 {[%clk 0:02:14]} 52. g5 {[%clk 0:00:46.1]} 52...
Kg7 {[%clk 0:02:13.3]} 53. Kf5 {[%clk 0:00:45.2]} 53... Kf7 {[%clk 0:02:12.6]}
54. g6+ {[%clk 0:00:44.3]} 54... Kg7 {[%clk 0:02:12.2]} 55. Ke6 {[%clk 0:00:43]}
55... Kxg6 {[%clk 0:02:10.9]} 1/2-1/2

[Event "Live Chess"]
[Site "Chess.com"]
[Date "2023.05.20"]
[Round "-"]
[White "RoaringKnights"]
[Black "Hacker_2009"]
[Result "0-1"]
[WhiteElo "966"]
[BlackElo "1913"]
[TimeControl "300"]
[EndTime "12:29:50 PDT"]
[Termination "Hacker_2009 won by checkmate"]

1. e4 {[%clk 0:04:59.5]} 1... c5 {[%clk 0:04:58]} 2. Bc4 {[%clk 0:04:58]} 2...
d6 {[%clk 0:04:56.9]} 3. Nf3 {[%clk 0:04:56.7]} 3... Nf6 {[%clk 0:04:56]} 4. e5
{[%clk 0:04:55.3]} 4... dxe5 {[%clk 0:04:54.9]} 5. Nxe5 {[%clk 0:04:54.3]} 5...
Qc7 {[%clk 0:04:54]} 6. d4 {[%clk 0:04:50.7]} 6... cxd4 {[%clk 0:04:52.4]} 7.
Qxd4 {[%clk 0:04:49.4]} 7... e6 {[%clk 0:04:50.8]} 8. Bf4 {[%clk 0:04:39.9]}
8... Bd6 {[%clk 0:04:45.3]} 9. Bb5+ {[%clk 0:04:30.3]} 9... Ke7 {[%clk
0:04:35.9]} 10. Nd2 {[%clk 0:04:18.5]} 10... Nd5 {[%clk 0:04:21.4]} 11. Nd3
{[%clk 0:03:56.9]} 11... Nxf4 {[%clk 0:04:16.5]} 12. Nxf4 {[%clk 0:03:52.3]}
12... Bxf4 {[%clk 0:04:14.1]} 13. Qxg7 {[%clk 0:03:50.2]} 13... Be5 {[%clk
0:04:10]} 14. Qg5+ {[%clk 0:03:46.1]} 14... Bf6 {[%clk 0:04:08.3]} 15. Qh6
{[%clk 0:03:39]} 15... Qe5+ {[%clk 0:04:05.2]} 16. Be2 {[%clk 0:03:34.8]} 16...
Rd8 {[%clk 0:03:57.3]} 17. c3 {[%clk 0:03:18.1]} 17... Bg5 {[%clk 0:03:49.6]}
18. Qxh7 {[%clk 0:03:08.2]} 18... Bxd2+ {[%clk 0:03:46.4]} 19. Kf1 {[%clk
0:03:05.3]} 19... Bg5 {[%clk 0:03:37.2]} 20. g3 {[%clk 0:02:55.4]} 20... Nc6
{[%clk 0:03:32.1]} 21. f4 {[%clk 0:02:53.3]} 21... Qd5 {[%clk 0:03:27.1]} 22.
Rg1 {[%clk 0:02:40.5]} 22... Bf6 {[%clk 0:03:24.3]} 23. Rd1 {[%clk 0:02:31.2]}
23... Qc5 {[%clk 0:03:19.8]} 24. Rxd8 {[%clk 0:02:25.3]} 24... Nxd8 {[%clk
0:03:19.7]} 25. g4 {[%clk 0:02:19.8]} 25... Qe3 {[%clk 0:03:11.6]} 26. g5 {[%clk
0:02:11.8]} 26... Qxf4+ {[%clk 0:03:09.1]} 27. Ke1 {[%clk 0:02:11.1]} 27... Bxg5
{[%clk 0:03:05.3]} 28. Bh5 {[%clk 0:01:52.7]} 28... Qd2+ {[%clk 0:02:52.5]} 29.
Kf1 {[%clk 0:01:50.8]} 29... Be3 {[%clk 0:02:51.1]} 30. Rh1 {[%clk 0:01:43.1]}
30... Qf2# {[%clk 0:02:49]} 0-1

[Event "Live Chess"]
[Site "Chess.com"]
[Date "2023.05.20"]
[Round "-"]
[White "HoarseyHorsey"]
[Black "diana21strabt"]
[Result "0-1"]
[WhiteElo "1395"]
[BlackElo "1674"]
[TimeControl "300"]
[EndTime "12:29:54 PDT"]
[Termination "diana21strabt won on time"]

1. d4 {[%clk 0:04:58.7]} 1... Nf6 {[%clk 0:04:52.5]} 2. c4 {[%clk 0:04:57.9]}
2... g6 {[%clk 0:04:51]} 3. f3 {[%clk 0:04:57.3]} 3... Bg7 {[%clk 0:04:49.6]} 4.
e4 {[%clk 0:04:56.7]} 4... d6 {[%clk 0:04:48.7]} 5. Nc3 {[%clk 0:04:56.1]} 5...
Nbd7 {[%clk 0:04:46.5]} 6. Nh3 {[%clk 0:04:53.5]} 6... O-O {[%clk 0:04:45.6]} 7.
Nf2 {[%clk 0:04:51.9]} 7... e5 {[%clk 0:04:44.6]} 8. d5 {[%clk 0:04:50.5]} 8...
a5 {[%clk 0:04:42.9]} 9. Be3 {[%clk 0:04:48.3]} 9... b6 {[%clk 0:04:41.2]} 10.
g4 {[%clk 0:04:44.9]} 10... Nc5 {[%clk 0:04:37.4]} 11. h4 {[%clk 0:04:39.1]}
11... h5 {[%clk 0:04:23.7]} 12. g5 {[%clk 0:04:29.1]} 12... Nfd7 {[%clk
0:04:21.5]} 13. Be2 {[%clk 0:04:15]} 13... f6 {[%clk 0:04:20.5]} 14. gxf6 {[%clk
0:04:11.2]} 14... Qxf6 {[%clk 0:04:19.2]} 15. Bg5 {[%clk 0:03:37.6]} 15... Qf7
{[%clk 0:04:15]} 16. Qd2 {[%clk 0:03:30.7]} 16... Nb7 {[%clk 0:04:12.1]} 17.
O-O-O {[%clk 0:03:28.9]} 17... a4 {[%clk 0:04:09]} 18. a3 {[%clk 0:03:27.4]}
18... Ndc5 {[%clk 0:04:03.9]} 19. Kb1 {[%clk 0:03:20.7]} 19... Nb3 {[%clk
0:04:01.3]} 20. Qe3 {[%clk 0:03:16.8]} 20... N7c5 {[%clk 0:03:55.8]} 21. Rdg1
{[%clk 0:02:58.3]} 21... Nd4 {[%clk 0:03:52.3]} 22. Bd1 {[%clk 0:02:51.2]} 22...
Nxf3 {[%clk 0:03:48.3]} 23. Bxf3 {[%clk 0:02:49.1]} 23... Qxf3 {[%clk
0:03:47.1]} 24. Qxf3 {[%clk 0:02:46.3]} 24... Rxf3 {[%clk 0:03:46.1]} 25. Nfd1
{[%clk 0:02:44.8]} 25... Bg4 {[%clk 0:03:44.3]} 26. Rf1 {[%clk 0:02:42.6]} 26...
Raf8 {[%clk 0:03:42.4]} 27. Rxf3 {[%clk 0:02:35]} 27... Bxf3 {[%clk 0:03:41.4]}
28. Rf1 {[%clk 0:02:30.6]} 28... Bxd1 {[%clk 0:03:39.3]} 29. Rxd1 {[%clk
0:02:21]} 29... Kh7 {[%clk 0:03:30.7]} 30. Rd2 {[%clk 0:02:10.5]} 30... Bh6
{[%clk 0:03:27.9]} 31. Bxh6 {[%clk 0:02:07.7]} 31... Kxh6 {[%clk 0:03:27]} 32.
Re2 {[%clk 0:01:51]} 32... Rf4 {[%clk 0:03:24.2]} 33. b4 {[%clk 0:01:48.4]}
33... Nb3 {[%clk 0:03:12.5]} 34. Rh2 {[%clk 0:01:43.5]} 34... Rf3 {[%clk
0:03:04]} 35. Kb2 {[%clk 0:01:33.2]} 35... Nd4 {[%clk 0:02:54.4]} 36. Nxa4
{[%clk 0:01:29.5]} 36... Rb3+ {[%clk 0:02:53]} 37. Ka2 {[%clk 0:01:25]} 37...
Re3 {[%clk 0:02:51.8]} 38. c5 {[%clk 0:01:11.7]} 38... bxc5 {[%clk 0:02:46.1]}
39. bxc5 {[%clk 0:01:11.6]} 39... Rxe4 {[%clk 0:02:45]} 40. Nc3 {[%clk 0:00:57]}
40... Rg4 {[%clk 0:02:40.5]} 41. cxd6 {[%clk 0:00:50.3]} 41... cxd6 {[%clk
0:02:38.8]} 42. a4 {[%clk 0:00:47.7]} 42... Nf3 {[%clk 0:02:34.4]} 43. Rf2
{[%clk 0:00:40.7]} 43... Nxh4 {[%clk 0:02:30.9]} 44. a5 {[%clk 0:00:39.7]} 44...
Rc4 {[%clk 0:02:26.3]} 45. Rf6 {[%clk 0:00:34.2]} 45... Rxc3 {[%clk 0:02:23.4]}
46. Rxd6 {[%clk 0:00:29.8]} 46... Rc5 {[%clk 0:02:21.9]} 47. a6 {[%clk
0:00:27.7]} 47... Nf5 {[%clk 0:02:19.1]} 48. Rc6 {[%clk 0:00:23]} 48... Ra5+
{[%clk 0:02:17.4]} 49. Kb3 {[%clk 0:00:21.7]} 49... Rxd5 {[%clk 0:02:15.7]} 50.
a7 {[%clk 0:00:17.5]} 50... Ra5 {[%clk 0:02:13.9]} 51. Rc7 {[%clk 0:00:16.4]}
51... Nd4+ {[%clk 0:02:10.8]} 52. Kb4 {[%clk 0:00:14.7]} 52... Ra6 {[%clk
0:02:08.5]} 53. Kc4 {[%clk 0:00:09.2]} 53... Nc6 {[%clk 0:02:04.5]} 54. Kc5
{[%clk 0:00:05.2]} 54... Nxa7 {[%clk 0:02:02.4]} 0-1

[Event "Live Chess"]
[Site "Chess.com"]
[Date "2023.05.20"]
[Round "-"]
[White "Richardallis"]
[Black "Delacorta"]
[Result "1-0"]
[WhiteElo "1758"]
[BlackElo "1418"]
[TimeControl "300"]
[EndTime "12:29:55 PDT"]
[Termination "Richardallis won by resignation"]

1. d4 {[%clk 0:04:59.4]} 1... e6 {[%clk 0:04:58.6]} 2. Nf3 {[%clk 0:04:58.4]}
2... f5 {[%clk 0:04:58.1]} 3. Bg5 {[%clk 0:04:56.1]} 3... Nf6 {[%clk 0:04:57.2]}
4. Nbd2 {[%clk 0:04:55.3]} 4... Be7 {[%clk 0:04:54.9]} 5. Bxf6 {[%clk
0:04:54.4]} 5... Bxf6 {[%clk 0:04:53.8]} 6. e4 {[%clk 0:04:54]} 6... fxe4 {[%clk
0:04:52.5]} 7. Nxe4 {[%clk 0:04:53.6]} 7... O-O {[%clk 0:04:46.1]} 8. Bd3 {[%clk
0:04:52.7]} 8... d5 {[%clk 0:04:31.3]} 9. Ng3 {[%clk 0:04:51.3]} 9... Qe8 {[%clk
0:04:10]} 10. O-O {[%clk 0:04:49.4]} 10... Nd7 {[%clk 0:04:02.6]} 11. Re1 {[%clk
0:04:47.6]} 11... Qd8 {[%clk 0:03:58.2]} 12. c3 {[%clk 0:04:44.3]} 12... Nb6
{[%clk 0:03:56.5]} 13. Rc1 {[%clk 0:04:41.2]} 13... Nc4 {[%clk 0:03:55.1]} 14.
Bb1 {[%clk 0:04:39]} 14... Nxb2 {[%clk 0:03:53.3]} 15. Qc2 {[%clk 0:04:37.4]}
1-0

[Event "Live Chess"]
[Site "Chess.com"]
[Date "2023.05.20"]
[Round "-"]
[White "OleksiyJr1"]
[Black "TheSmoulderingMaster"]
[Result "0-1"]
[WhiteElo "933"]
[BlackElo "1731"]
[TimeControl "300"]
[EndTime "12:30:00 PDT"]
[Termination "TheSmoulderingMaster won by resignation"]

1. e4 {[%clk 0:04:58.7]} 1... c5 {[%clk 0:04:58.8]} 2. Nf3 {[%clk 0:04:58.2]}
2... d6 {[%clk 0:04:57.6]} 3. Nc3 {[%clk 0:04:56.3]} 3... Nc6 {[%clk 0:04:56.5]}
4. d4 {[%clk 0:04:55.7]} 4... cxd4 {[%clk 0:04:55.2]} 5. Nxd4 {[%clk 0:04:55.6]}
5... Nf6 {[%clk 0:04:54.1]} 6. Bb5 {[%clk 0:04:52.5]} 6... Bd7 {[%clk
0:04:52.7]} 7. O-O {[%clk 0:04:49]} 7... g6 {[%clk 0:04:51.5]} 8. h3 {[%clk
0:04:47.6]} 8... Bg7 {[%clk 0:04:50.8]} 9. Bg5 {[%clk 0:04:47.1]} 9... O-O
{[%clk 0:04:49.7]} 10. Bxf6 {[%clk 0:04:46.2]} 10... Bxf6 {[%clk 0:04:48.7]} 11.
Nxc6 {[%clk 0:04:45.2]} 11... bxc6 {[%clk 0:04:48.2]} 12. Bxc6 {[%clk
0:04:45.1]} 12... Bxc6 {[%clk 0:04:47.3]} 13. Nd5 {[%clk 0:04:42.4]} 13... Bxb2
{[%clk 0:04:45]} 14. Rb1 {[%clk 0:04:39.6]} 14... Bg7 {[%clk 0:04:44.9]} 0-1

[Event "Live Chess"]
[Site "Chess.com"]
[Date "2023.05.20"]
[Round "-"]
[White "Judgen68"]
[Black "raminguy"]
[Result "1-0"]
[WhiteElo "1496"]
[BlackElo "1974"]
[TimeControl "300"]
[EndTime "12:30:08 PDT"]
[Termination "Judgen68 won - game abandoned"]

1. d4 {[%clk 0:04:56.9]} 1... d5 {[%clk 0:04:58.7]} 2. c4 {[%clk 0:04:55.2]}
2... e6 {[%clk 0:04:58.1]} 3. Nc3 {[%clk 0:04:53.4]} 3... a6 {[%clk 0:04:56.8]}
4. cxd5 {[%clk 0:04:48.9]} 4... exd5 {[%clk 0:04:54.3]} 5. Nf3 {[%clk
0:04:47.7]} 5... Nf6 {[%clk 0:04:52.6]} 6. Bg5 {[%clk 0:04:45.9]} 6... Be7
{[%clk 0:04:52.3]} 7. e3 {[%clk 0:04:45.1]} 7... O-O {[%clk 0:04:51.2]} 8. Bd3
{[%clk 0:04:43.3]} 8... c6 {[%clk 0:04:50.7]} 9. h4 {[%clk 0:04:41.2]} 9... h6
{[%clk 0:04:49.7]} 10. Ne5 {[%clk 0:04:29.1]} 10... Nbd7 {[%clk 0:04:45.3]} 11.
Qf3 {[%clk 0:04:06]} 11... Nxe5 {[%clk 0:04:42]} 12. dxe5 {[%clk 0:04:04.5]}
12... Ng4 {[%clk 0:04:32]} 13. Bf4 {[%clk 0:03:13.7]} 13... f6 {[%clk
0:04:18.8]} 14. e6 {[%clk 0:02:28.1]} 14... Bxe6 {[%clk 0:04:16.7]} 15. O-O-O
{[%clk 0:02:26.8]} 15... Ne5 {[%clk 0:04:01.2]} 16. Qg3 {[%clk 0:02:22.3]} 16...
Nxd3+ {[%clk 0:03:57]} 17. Rxd3 {[%clk 0:02:20.3]} 17... Qe8 {[%clk 0:03:44.7]}
18. Bxh6 {[%clk 0:02:08.2]} 18... Qf7 {[%clk 0:03:33.8]} 19. Ne2 {[%clk
0:01:49.3]} 19... Kh7 {[%clk 0:03:31.6]} 20. Bf4 {[%clk 0:01:41.3]} 20... Bf5
{[%clk 0:03:30]} 21. Rb3 {[%clk 0:01:33.7]} 21... Bc5 {[%clk 0:03:19.4]} 22. h5
{[%clk 0:01:30.3]} 22... Qe7 {[%clk 0:03:03.5]} 23. h6 {[%clk 0:01:25.1]} 23...
g6 {[%clk 0:03:02.3]} 24. Nd4 {[%clk 0:00:55.9]} 1-0

[Event "Live Chess"]
[Site "Chess.com"]
[Date "2023.05.20"]
[Round "-"]
[White "LiamBellwood"]
[Black "DerbyKnight"]
[Result "1-0"]
[WhiteElo "2057"]
[BlackElo "1628"]
[TimeControl "300"]
[EndTime "12:30:09 PDT"]
[Termination "LiamBellwood won by resignation"]

1. d4 {[%clk 0:04:58.7]} 1... d5 {[%clk 0:04:58]} 2. Nc3 {[%clk 0:04:58.4]} 2...
Nf6 {[%clk 0:04:53.7]} 3. Bf4 {[%clk 0:04:58]} 3... c5 {[%clk 0:04:43.6]} 4. e3
{[%clk 0:04:57.2]} 4... Bg4 {[%clk 0:04:42]} 5. f3 {[%clk 0:04:55.4]} 5... Bd7
{[%clk 0:04:40.1]} 6. dxc5 {[%clk 0:04:45.3]} 6... e6 {[%clk 0:04:29.8]} 7. Bd6
{[%clk 0:04:39.2]} 7... Bxd6 {[%clk 0:04:26.9]} 8. cxd6 {[%clk 0:04:39.1]} 8...
Qa5 {[%clk 0:04:12.6]} 9. Bd3 {[%clk 0:04:27.1]} 9... a6 {[%clk 0:04:06.3]} 10.
Ne2 {[%clk 0:04:25.1]} 10... Qb6 {[%clk 0:04:01.5]} 11. O-O {[%clk 0:04:21.5]}
11... Qxe3+ {[%clk 0:03:59.8]} 12. Kh1 {[%clk 0:04:20.2]} 12... Qb6 {[%clk
0:03:43.3]} 13. Ng3 {[%clk 0:03:56.2]} 13... Qxd6 {[%clk 0:03:37.9]} 14. Re1
{[%clk 0:03:52.9]} 14... O-O {[%clk 0:03:36.1]} 15. a4 {[%clk 0:03:46.4]} 15...
Nc6 {[%clk 0:03:31.2]} 16. Qe2 {[%clk 0:03:33.6]} 16... Nd4 {[%clk 0:03:28.8]}
17. Qe3 {[%clk 0:03:29.3]} 17... Nc6 {[%clk 0:03:07.4]} 18. Qg5 {[%clk
0:03:13.4]} 18... h6 {[%clk 0:03:02.6]} 19. Qd2 {[%clk 0:03:11.7]} 19... Nb4
{[%clk 0:02:45.3]} 20. Bf1 {[%clk 0:03:06.1]} 20... Rac8 {[%clk 0:02:38]} 21.
Nce4 {[%clk 0:02:44.9]} 21... Nxe4 {[%clk 0:02:31.3]} 22. Nxe4 {[%clk
0:02:43.8]} 22... Qe7 {[%clk 0:02:24.7]} 23. Nc3 {[%clk 0:02:17.6]} 23... a5
{[%clk 0:02:09.8]} 24. Nxd5 {[%clk 0:02:10.9]} 24... Nxd5 {[%clk 0:01:57.3]} 25.
Qxd5 {[%clk 0:02:10.1]} 25... Rxc2 {[%clk 0:01:55.5]} 26. Qxb7 {[%clk
0:01:44.6]} 26... Rfc8 {[%clk 0:01:36.7]} 27. Rad1 {[%clk 0:01:24.5]} 27... R8c7
{[%clk 0:01:26.1]} 28. Qb8+ {[%clk 0:01:19.3]} 28... Kh7 {[%clk 0:01:24.6]} 29.
Bd3+ {[%clk 0:01:17.8]} 29... g6 {[%clk 0:01:17.7]} 30. Bxc2 {[%clk 0:01:16.9]}
30... Rxc2 {[%clk 0:01:15]} 31. Qb7 {[%clk 0:01:16]} 31... Qc5 {[%clk
0:01:01.8]} 32. Qxd7 {[%clk 0:01:09.7]} 32... Kg7 {[%clk 0:00:55.9]} 33. Qd4+
{[%clk 0:00:48.2]} 1-0

[Event "Live Chess"]
[Site "Chess.com"]
[Date "2023.05.20"]
[Round "-"]
[White "martynstanley"]
[Black "zdanevych"]
[Result "0-1"]
[WhiteElo "989"]
[BlackElo "1514"]
[TimeControl "300"]
[EndTime "12:30:11 PDT"]
[Termination "zdanevych won by checkmate"]

1. d4 {[%clk 0:04:58.3]} 1... d5 {[%clk 0:04:59.3]} 2. e3 {[%clk 0:04:57.2]}
2... c5 {[%clk 0:04:58.5]} 3. Bd3 {[%clk 0:04:56.8]} 3... cxd4 {[%clk
0:04:56.9]} 4. exd4 {[%clk 0:04:55.8]} 4... Nc6 {[%clk 0:04:55.7]} 5. c3 {[%clk
0:04:54.5]} 5... Nf6 {[%clk 0:04:55.1]} 6. f4 {[%clk 0:04:53]} 6... Bg4 {[%clk
0:04:53.8]} 7. Nf3 {[%clk 0:04:52.1]} 7... e6 {[%clk 0:04:51.5]} 8. O-O {[%clk
0:04:51.2]} 8... Bd6 {[%clk 0:04:49]} 9. Qe1 {[%clk 0:04:50]} 9... Qc7 {[%clk
0:04:48.2]} 10. Ne5 {[%clk 0:04:49.2]} 10... h6 {[%clk 0:04:38.8]} 11. Be2
{[%clk 0:04:45.4]} 11... Bxe2 {[%clk 0:04:37.3]} 12. Qxe2 {[%clk 0:04:44.3]}
12... O-O {[%clk 0:04:37.2]} 13. Rf3 {[%clk 0:04:42.9]} 13... Ne4 {[%clk
0:04:36.2]} 14. Rh3 {[%clk 0:04:39.6]} 14... Qb6 {[%clk 0:04:27.1]} 15. Nd2
{[%clk 0:04:38.1]} 15... Nxe5 {[%clk 0:04:22.6]} 16. fxe5 {[%clk 0:04:37.3]}
16... Bxe5 {[%clk 0:04:22.3]} 17. Nxe4 {[%clk 0:04:33.8]} 17... dxe4 {[%clk
0:04:20.7]} 18. Qxe4 {[%clk 0:04:32.5]} 18... Bf6 {[%clk 0:04:18.8]} 19. Bxh6
{[%clk 0:04:29.4]} 19... Qc6 {[%clk 0:04:10.3]} 20. Qg4 {[%clk 0:04:23.6]} 20...
Qd5 {[%clk 0:04:04.7]} 21. Bxg7 {[%clk 0:04:19.9]} 21... Bxg7 {[%clk 0:04:02.8]}
22. Qh5 {[%clk 0:04:18.6]} 22... f5 {[%clk 0:03:59.8]} 23. Qh7+ {[%clk
0:04:17.4]} 23... Kf7 {[%clk 0:03:58.9]} 24. Qh5+ {[%clk 0:04:16.5]} 24... Ke7
{[%clk 0:03:57.9]} 25. Re1 {[%clk 0:04:12.3]} 25... Kd6 {[%clk 0:03:53.1]} 26.
Qg6 {[%clk 0:04:10.7]} 26... Bf6 {[%clk 0:03:47.4]} 27. Rh6 {[%clk 0:04:07.6]}
27... Rae8 {[%clk 0:03:41.8]} 28. h3 {[%clk 0:04:06]} 28... Bd8 {[%clk
0:03:35.1]} 29. g4 {[%clk 0:04:04.8]} 29... fxg4 {[%clk 0:03:31]} 30. Rxe6+
{[%clk 0:04:02.7]} 30... Rxe6 {[%clk 0:03:29.5]} 31. Qxe6+ {[%clk 0:04:00.8]}
31... Qxe6 {[%clk 0:03:28.6]} 32. Rxe6+ {[%clk 0:04:00.1]} 32... Kxe6 {[%clk
0:03:28.1]} 33. hxg4 {[%clk 0:03:59.6]} 33... Rg8 {[%clk 0:03:26.5]} 34. Kg2
{[%clk 0:03:59]} 34... Rxg4+ {[%clk 0:03:25.1]} 35. Kf2 {[%clk 0:03:58]} 35...
Bh4+ {[%clk 0:03:22.8]} 36. Ke2 {[%clk 0:03:56]} 36... Rg2+ {[%clk 0:03:21.9]}
37. Kd3 {[%clk 0:03:54.4]} 37... Rxb2 {[%clk 0:03:21.8]} 38. a4 {[%clk
0:03:53.1]} 38... Ra2 {[%clk 0:03:18.8]} 39. Kc4 {[%clk 0:03:52.2]} 39... Rxa4+
{[%clk 0:03:17.8]} 40. Kc5 {[%clk 0:03:50.9]} 40... a6 {[%clk 0:03:16.9]} 41. c4
{[%clk 0:03:50.3]} 41... Kd7 {[%clk 0:03:12.3]} 42. Kd5 {[%clk 0:03:48.9]} 42...
Kc7 {[%clk 0:03:11.4]} 43. c5 {[%clk 0:03:48.3]} 43... Bf2 {[%clk 0:03:09.5]}
44. Ke5 {[%clk 0:03:45.5]} 44... Bxd4+ {[%clk 0:03:07.8]} 45. Ke4 {[%clk
0:03:42.5]} 45... Bxc5+ {[%clk 0:03:06.9]} 46. Kd5 {[%clk 0:03:41.6]} 46... Ba7
{[%clk 0:03:05.6]} 47. Ke6 {[%clk 0:03:40.6]} 47... Rc4 {[%clk 0:03:04.8]} 48.
Kf7 {[%clk 0:03:37.8]} 48... Rc5 {[%clk 0:03:04.7]} 49. Kg6 {[%clk 0:03:37.1]}
49... b5 {[%clk 0:03:04.6]} 50. Kf6 {[%clk 0:03:35.9]} 50... b4 {[%clk
0:03:04.5]} 51. Kg6 {[%clk 0:03:35.4]} 51... b3 {[%clk 0:03:04.4]} 52. Kf6
{[%clk 0:03:34.8]} 52... b2 {[%clk 0:03:04.3]} 53. Kg6 {[%clk 0:03:34.2]} 53...
b1=Q+ {[%clk 0:03:04.2]} 54. Kf6 {[%clk 0:03:33.6]} 54... Rc2 {[%clk 0:03:03.4]}
55. Kg5 {[%clk 0:03:32.4]} 55... Qd1 {[%clk 0:03:03.3]} 56. Kf5 {[%clk
0:03:31.7]} 56... Re2 {[%clk 0:03:03.2]} 57. Kf4 {[%clk 0:03:30.7]} 57... Qf1+
{[%clk 0:03:03.1]} 58. Kg3 {[%clk 0:03:30.1]} 58... Rg2+ {[%clk 0:03:03]} 59.
Kh3 {[%clk 0:03:29.5]} 59... Qh1# {[%clk 0:03:02.9]} 0-1